Cogmind - Beta 14 @@@ ROGUE MODE // 2024.11.17 @ 11:56:50 Player: Fangrelle Result: Destroyed by D-53 Grenadier with Mini Grenade Launcher Performance ------------- Evolutions (0) 0 Regions Visited (2) 400 Robots Destroyed (1) 5 Value Destroyed (10) 10 Prototype IDs (0) 0 Alien Tech Used (0) 0 Bonus (0) 0 TOTAL SCORE: 415 Bonus ------- None Cogmind --------- Core Integrity 0/250 Matter 300/300 Energy 99/100 System Corruption 6% Temperature Cool (0) Movement Core (50) Location -10/Mines Parts ------- > --- POWER (1) -------- (None) > --- PROPULSION (2) --- (None) > --- UTILITY (2) ------ Structural Scanner ECM Suite > --- WEAPON (2) ------- (None) > --- INVENTORY (5) ---- High-capacity Storage Unit Datajack Peak State ------------ > --- POWER ------------ (None) > --- PROPULSION ------- Flight Unit > --- UTILITY ---------- Structural Scanner ECM Suite > --- WEAPON ----------- Small Laser > --- INVENTORY -------- Compact Wheel High-capacity Storage Unit Datajack [Rating: 4] Favorites ----------- Power Ion Engine Engine Ion Engine Propulsion Flight Unit Flight Unit Flight Unit Utility ECM Suite Device ECM Suite Weapon Small Laser Energy Gun Small Laser Build | -11 -10 -10 ------- Run | Yrd Mat Min Slots Evolved . | . . . Power . | . . . Propulsion . | . . . Utility . | . . . Weapon . | . . . Parts Attached 5 | . 1 4 Power 1 | . 1 . Engine 1 | . 1 . Core . | . . . Reactor . | . . . Propulsion 1 | . . 1 Treads . | . . . Leg . | . . . Wheel . | . . . Hover . | . . . Flight 1 | . . 1 Utility 2 | . . 2 Device 2 | . . 2 Storage . | . . . Processor . | . . . Hackware . | . . . Protection . | . . . Artifact . | . . . Weapon 1 | . . 1 Energy Gun 1 | . . 1 Energy Cannon . | . . . Ballistic Gun . | . . . Ballistic Cannon . | . . . Launcher . | . . . Special Weapon . | . . . Impact Weapon . | . . . Slashing Weapon . | . . . Piercing Weapon . | . . . Special Melee Weapon . | . . . Unidentified Prototypes . | . . . Parts Lost 2 | . . 2 Power . | . . . Propulsion 1 | . . 1 Utility . | . . . Weapon 1 | . . 1 Highest Loss Streak 2 | . . 2 To Critical Strikes . | . . . Average Slot Usage (%) 20 | . . 23 Flight 4 | . . 5 Device 9 | . . 10 Energy Gun 7 | . . 8 Peak Build Rating 4 | . 1 4 Average Rating 1 | . . 1 On Entrance 4 | 6 6 . Naked Turns 277 | . 69 208 Heaviest Build 13 | 13 . 4 Greatest Support 20 | 20 3 4 Greatest Overweight (x) . | . . . Average Overweight (x) . | . . . Largest Inventory Capacity 5 | . 5 5 Average Capacity 5 | . 5 5 Most Carried 5 | . 5 5 Average Carried 3 | . 3 3 Final Capacity 8 | 8 5 5 Final Carried 6 | 6 3 2 Class Distribution -------------------- 68% | Mutant 31% | Infiltrator-Mutant Dominant Class ---------------- Mutant | -10/Materials Mutant | -10/Mines Resources | -11 -10 -10 ----------- Run | Yrd Mat Min Matter Collected 250 | 200 10 40 Remotely . | . . . Salvage Created 11 | . . 11 Parts . | . . . Haulers Intercepted . | . . . Recyclers Shooed . | . . . Parts Field Recycled . | . . . Retrieved Matter . | . . . Parts Self-Destructed . | . . . Prevented . | . . . Kills | -11 -10 -10 ------- Run | Yrd Mat Min Combat Hostiles Destroyed 1 | . . 1 Guns 1 | . . 1 Classes Destroyed 1 | . . 1 Swarmer 1 | . . 1 Best Kill Streak 1 | . . 1 Combat Bots Only 1 | . . 1 Max Kills in Single Turn 1 | . . 1 Gunslinging . | . . . Exploded . | . . . Melee . | . . . Uniques/NPCs Destroyed . | . . . Combat | -11 -10 -10 -------- Run | Yrd Mat Min Hostile Shots Fired 36 | . 9 27 Missed 15 | . 2 13 Damage Taken 369 | . 53 316 Core 273 | . 53 220 Absorbed by Shields . | . . . Core Remaining (%) 100 | 100 . . Volleys Fired 1 | . . 1 Largest 1 | . . 1 Hottest 40 | . . 40 Shots Fired 1 | . . 1 Gun 1 | . . 1 Cannon . | . . . Launcher . | . . . Special . | . . . Kinetic . | . . . Thermal 1 | . . 1 Explosive . | . . . Electromagnetic . | . . . Robot Hit Streak 1 | . . 1 Robot Miss Streak . | . . . Penetration Max . | . . . Secondary Targets . | . . . Shots Hit Robots 1 | . . 1 Core Hits 1 | . . 1 Critical Kills . | . . . Critical Parts Destroyed . | . . . Critical Strikes . | . . . Melee Attacks . | . . . Impact . | . . . Slashing . | . . . Piercing . | . . . Sneak Attacks . | . . . Combat Hostiles . | . . . Follow-up Attacks . | . . . Damage Inflicted 20 | . . 20 Guns 10 | . . 10 Cannons . | . . . Explosions . | . . . Melee . | . . . Ramming 10 | . . 10 Kinetic . | . . . Thermal 10 | . . 10 Explosive . | . . . Electromagnetic . | . . . Impact . | . . . Slashing . | . . . Piercing . | . . . Highest Corruption 6 | . . 6 Average Corruption 5 | . . 5 Corruption Purged . | . . . Corruption Blocked . | . . . Overload Shots . | . . . Overflow Damage . | . . . Projectiles . | . . . Explosions . | . . . Melee . | . . . Knockbacks . | . . . Impact . | . . . Kinetic . | . . . Secondary . | . . . Self-Inflicted Damage 5 | . . 5 Shots . | . . . Rammed 1 | . . 1 Targets Rammed 1 | . . 1 Kicked . | . . . Crushed . | . . . Highest Temperature . | . . . Average Temperature . | . . . Received Heat Transfer . | . . . Siege Activations . | . . . Robots Corrupted . | . . . Combat Hostiles . | . . . Parts Fried . | . . . Impact Corruptions . | . . . Robots Melted . | . . . Combat Hostiles . | . . . Parts Melted . | . . . Heat Transferred 25 | . . 25 Parts Sabotaged . | . . . Parts Stolen . | . . . Parts Stripped . | . . . Power Chain Reactions . | . . . Alert | -11 -10 -10 ------- Run | Yrd Mat Min Peak Influence 138 | . 60 138 Initial 23 | . . 23 Average 87 | . 16 98 Maximum Alert Level . | . . . Low Security (%) 100 | . 100 100 Level 1 . | . . . Level 2 . | . . . Level 3 . | . . . Level 4 . | . . . Level 5 . | . . . High Security . | . . . Max Security . | . . . Squads Dispatched . | . . . Investigation . | . . . Extermination . | . . . Reinforcement . | . . . Assault . | . . . Garrison . | . . . Intercept . | . . . Searches Triggered . | . . . Construction Impeded . | . . . Haulers Reinforced . | . . . Active Scanning Responses . | . . . Cargo Convoy Interrupts . | . . . Stealth | -11 -10 -10 --------- Run | Yrd Mat Min Distress Signals 1 | . 1 . Communications Jammed . | . . . Distress Signals . | . . . Times Spotted 16 | . 6 10 Peak Tracking Total 7 | . 7 3 Tactical Retreats 6 | . 1 5 Traps | -11 -10 -10 ------- Run | Yrd Mat Min Traps Triggered 1 | . 1 . Indirectly . | . . . Trap Hack Attempts . | . . . Triggered . | . . . Disarmed . | . . . Reprogrammed . | . . . Reused 3 | . . 3 Traps Extracted . | . . . Installed 5 | . . 5 Triggered 2 | . . 2 Most Traps Carried 3 | . . 3 Machines | -11 -10 -10 ---------- Run | Yrd Mat Min Machines Disabled . | . . . Max in Single Turn . | . . . Machines Repaired . | . . . Machines Dismantled . | . . . Machines Sabotaged . | . . . Overloaded Fab Kills . | . . . Hacking | -11 -10 -10 --------- Run | Yrd Mat Min Machines Accessed 1 | . . 1 Terminals 1 | . . 1 Fabricators . | . . . Repair Stations . | . . . Recycling Units . | . . . Scanalyzers . | . . . Garrison Access . | . . . Total Hacks 2 | . . 2 Successful 1 | . . 1 Failed 1 | . . 1 Catastrophic . | . . . Database Lockouts . | . . . Manual . | . . . Terminals 2 | . . 2 Fabricators . | . . . Repair Stations . | . . . Recycling Units . | . . . Scanalyzers . | . . . Garrison Access . | . . . Terminal Hacks 1 | . . 1 Recall Investigation 1 | . . 1 Fabricator Hacks . | . . . Repair Station Hacks . | . . . Recycling Unit Hacks . | . . . Scanalyzer . | . . . Garrison Access Hacks . | . . . Unauthorized Hacks . | . . . Terminals . | . . . Fabricators . | . . . Repair Stations . | . . . Recycling Units . | . . . Scanalyzers . | . . . Garrison Access . | . . . Data Cores Recovered . | . . . Used . | . . . Hacking Detections 1 | . . 1 Full Trace Events . | . . . Feedback Events . | . . . Feedback Blocked . | . . . Robot Schematics Acquired . | . . . Robots Built . | . . . Authchips . | . . . Time . | . . . Total Robot Build Rating . | . . . Part Schematics Acquired . | . . . Parts Built . | . . . Authchips . | . . . Time . | . . . Total Part Build Rating . | . . . Parts Repaired . | . . . Time . | . . . Parts Recycled . | . . . Recycled Matter . | . . . Retrieved Matter . | . . . Retrieved Components . | . . . Parts Scanalyzed . | . . . Part Schematics Acquired . | . . . Parts Damaged . | . . . Bothacking | -11 -10 -10 ------------ Run | Yrd Mat Min Used RIF Installer . | . . . Robots Hacked . | . . . Non-combat . | . . . Combat . | . . . Robot Hacks Applied . | . . . Relay Couplers Released . | . . . Fabnet Peak Effective % . | . . . Robots Rewired . | . . . Allies Hacked . | . . . Hacks Repelled . | . . . Allies | -11 -10 -10 -------- Run | Yrd Mat Min Total Allies 2 | . . 2 Largest Group 2 | . . 2 Highest-Rated Group 42 | . . 42 Highest-Rated Ally 31 | . . 31 Total Orders . | . . . Ally Attacks 11 | . . 11 Total Damage 150 | . . 150 Kills 2 | . . 2 Allies Corrupted . | . . . Allies Melted . | . . . Intel | -11 -10 -10 ------- Run | Yrd Mat Min Robot Analysis Total . | . . . Derelict Logs Recovered 1 | . . 1 Drone Launches . | . . . Drone Recoveries . | . . . Exploration | -11 -10 -10 ------------- Run | Yrd Mat Min Turns Passed 563 | . 70 493 Spaces Moved 771 | 1 133 637 Core 381 | . 133 248 Treads . | . . . Legs 1 | 1 . . Wheels . | . . . Hover . | . . . Flight 389 | . . 389 Fastest Speed 40 | 120 50 40 Average Speed 45 | 120 50 43 Slowest Speed 120 | 120 50 50 Overloaded Moves . | . . . Propulsion Burnouts . | . . . Robots Hopped 2 | . . 2 Cave-ins Triggered . | . . . Exploration Rate (%) 35 | 2 23 82 Regions Visited 2 Branch Regions 1 Pre-discovered Areas . | . . . Known Exits Taken . | . . . Unknown Exits Taken 2 | 1 1 . Scrap Searched 1 | . . 1 Spaces Dug . | . . . Terrain Destroyed . | . . . Melee . | . . . Projectile . | . . . AOE . | . . . Terrain Rammed . | . . . Walls Destroyed . | . . . Machines Disabled . | . . . Actions | -11 -10 -10 --------- Run | Yrd Mat Min Total 986 | . 137 849 Wait 189 | . . 189 Move 765 | . 132 633 Hop 2 | . . 2 Pick Up 8 | . 1 7 Fast Attach 3 | . . 3 Attach 2 | . 1 1 Detach . | . . . Swap . | . . . Drop 10 | . 3 7 Fire 1 | . . 1 Melee . | . . . Ram 1 | . . 1 Kick . | . . . Crush . | . . . Escape Stasis . | . . . Rewire . | . . . Trap 5 | . . 5 Miscellaneous . | . . . Route ------- -11/Scrapyard -10/Materials -10/Mines (discovered 3 exits: [*Mat x2] / [*Sub]) History --------- Turn | Location | Event 1 | -11/Scrapyard | Discovered new exit (range 0) 1 | -11/Scrapyard | Entered Materials 1 | -10/Materials | Released all parts (6) 62 | -10/Materials | Discovered new exit (range 8) 71 | -10/Materials | Entered Mines 80 | -10/Mines | Learned Materials security intel 89 | -10/Mines | Core integrity fell below 50% 237 | -10/Mines | Met a Derelict bent on vengeance 300 | -10/Mines | Build established: Mutant 330 | -10/Mines | Discovered new exit (range 6) 381 | -10/Mines | Found DCF Scrap (12 items) 448 | -10/Mines | Discovered new exit (range 10) 451 | -10/Mines | Assembled infested the area 456 | -10/Mines | Assisted by a Guerilla fighting off Assembled 463 | -10/Mines | Found a hidden stash of uninstalled traps 546 | -10/Mines | Discovered new exit (range 14) 563 | -10/Mines | Core integrity fell below 20% 564 | -10/Mines | Destroyed by D-53 Grenadier with Mini Grenade Launcher Last Messages --------------- 00513_ U-05 Engineer lays Concrete. 00520_ Connecting with Terminal... 00520_ Current location identified: Mines >>Recall(Investigation) Establishing remote squad link... No tasked investigation squads found. 00533_ U-05 Engineer lays Concrete. 00534_ K-01 Serf collects debris. 00534_ U-05 Engineer lays Concrete. 00537_ U-05 Engineer builds a Wall. 00546_ EXIT=FOUND 00557_ Sml. Laser destroyed. 00557_ System corrupted by crushing effect (+5). 00559_ Dropped Heavy Explosive Trap. 00559_ Installed Heavy Explosive Trap. 00560_ Flight Unit destroyed. 00560_ System corrupted by crushing effect (+1). 00563_ as-22122 triggered Heavy Explosive Trap. 00563_ An explosion rips through the floor. 00563_ as-22122 destroyed. Map ----- +----------------------------------------------------+ | ############## ######### ## | | ### # #### """ """ """ ## | | # % ^ """ """ """ T# | | # ### #### #### """ """ """ ## | | # ## #### #### ## | | ### #### #### ## | | ###### #### ## | | ##### #### ## | | ! # # ##?### ################### | | % ###?#### ################## | | ###??#### ####?????????????? | | ##??#### ###?????????????? | | =% ######## ##?????????????? | | ### #### ##?????????????? | | ### ## ##?????????????? | | #?### ## ###?????????????? | | ####??### #### ####?????????????? | | ###???###% ###### ####??????????????? | | ????????### ###### ###???????????????? | | ????????#### ##### d###???????????????? | | ?######### #### ###########???????? | | ?# *%!## ##########???????? | | ?# ##! ##???????? | | ?# ############ ##???????? | | ?# ##???????#### ##???????? | | ## "###??????#### @ % ###??????? | | """#???????### ##??????? | | #????????## <##??????? | | % #????????### !% ## ####??????? | | ##????????#### ########??????? | | "#?????????#### #####???????????? | | " ##??????????#### #####????????????? | | " ##????????????##########??????????????? | | ^ #??????????????########???????????????? | | "####?????????????????????????????????????? | | ##????????????????????????????????????????? | | | | | | | | | | | | | | | | | | | | | | | | | | | | | +----------------------------------------------------+ Best States ------------- Heat Dissipation 25 Energy Generation 5 Energy Capacity 100 Matter Stores 300 Matter Capacity 300 Sight Range 16 Terrain Scan Density 10 ECM Strength 1 Evasion (%) 62 Item Schematics ----------------- None Robot Schematics ------------------ None Fabricated ------------ Nothing Alien Tech Used ----------------- None Achievements -------------- None Challenges ------------ None Game ------ Seed MicrowarpFissionLink Manual? 0 Play Time 00:06:16 Cumulative 100.1 hours Start 2024.11.17 @ 11:50:53 End 2024.11.17 @ 11:56:50 Sessions 1 Manual Loads 0 Difficulty Rogue Special Mode None Game No. 178 Rogue 178 Adventurer 0 Explorer 0 Win Type - Total 0 Types 0/0/0/0/0/0/0/0/0 Lore% 42 Gallery% 39 Achievement% 35 Wizard Run 0 Options --------- Layout 0 ASCII 0 Keyboard 0 Movement Mouse Keybinds 0 Fullscreen 1 Font 24/Cog Map View 91x25 Zoom Use 97% Tactical HUD 1 Map Filters NONE Filters NONE Steam 1 RUN: c77b1134-a1a3-40bb-b583-b0f640145ab1